bitfinex/quotes_SOLUSD_20241218
["timestamp","ask_amount","ask_price","bid_price","bid_amount"]
[1734549786672,40.53192742,217.0,216.87,20.0]
[1734549786877,40.53192742,217.0,216.92,40.53192742]
[1734549787187,40.53192742,217.04,216.96,40.53192742]
[1734549787409,0.6497151,217.09,216.94,40.53192742]
[1734549787410,40.53192742,217.02,216.94,40.53192742]
[1734549788071,40.53192742,217.04,216.94,40.53192742]
[1734549788465,40.53192742,217.02,216.92,40.53192742]
[1734549788667,40.53192742,216.98,216.9,40.53192742]
[1734549788871,0.6497151,217.09,216.92,40.53192742]
[1734549788872,40.53192742,217.0,216.92,40.53192742]
[1734549789067,40.53192742,217.02,216.94,40.53192742]
[1734549789807,40.53192742,217.04,216.94,40.53192742]
[1734549790005,40.53192742,217.04,216.96,40.53192742]
[1734549790319,40.53192742,216.98,216.89,40.53192742]
[1734549790471,40.53192742,216.96,216.89,40.53192742]
[1734549790667,40.53192742,216.98,216.89,40.53192742]
[1734549790866,40.53192742,216.98,216.84,0.69144301]
[1734549790867,40.53192742,216.98,216.91,40.53192742]
[1734549791105,40.53192742,217.0,216.91,40.53192742]
[1734549791572,40.53192742,217.02,216.95,40.53192742]
[1734549791766,40.53192742,217.0,216.93,40.53192742]
[1734549791968,40.47632362,217.0,216.93,40.53192742]
[1734549792167,40.53192742,217.02,216.93,40.53192742]
[1734549792583,40.53192742,217.0,216.93,40.53192742]
[1734549792996,40.53192742,217.0,216.91,40.53192742]
[1734549793194,40.53192742,216.96,216.87,40.53192742]
[1734549793371,40.53192742,216.94,216.87,40.53192742]
[1734549793772,40.53192742,216.94,216.85,40.53192742]
[1734549793974,40.53192742,216.94,216.79,0.69145592]
[1734549793975,40.53192742,216.92,216.83,40.53192742]
[1734549794515,40.53192742,216.96,216.87,40.53192742]
[1734549794689,40.53192742,216.98,216.89,40.53192742]
[1734549795209,1.5646,217.01,216.89,40.53192742]
[1734549795210,40.53192742,216.96,216.89,40.53192742]
[1734549795575,40.53192742,216.92,216.83,40.53192742]
[1734549795890,40.53192742,216.9,216.81,40.53192742]
[1734549796084,40.53192742,216.86,216.79,40.53192742]
[1734549797103,1.5646,217.01,216.77,40.53192742]
[1734549797104,40.53192742,216.84,216.77,40.53192742]
[1734549797392,40.53192742,216.84,216.68,7.556]
[1734549797393,40.53192742,216.84,216.73,20.0]
[1734549797594,40.53192742,216.82,216.73,40.53192742]
[1734549797790,40.53192742,216.82,216.75,40.53192742]
[1734549798380,40.53192742,216.8,216.71,40.53192742]
[1734549798779,40.53192742,216.8,216.68,0.6920011]
[1734549798780,40.53192742,216.8,216.73,40.53192742]
[1734549799181,40.53192742,216.82,216.75,40.53192742]
[1734549799403,40.53192742,216.84,216.77,40.53192742]
[1734549799599,40.53192742,216.84,216.75,40.53192742]
[1734549800100,40.53192742,216.86,216.79,40.53192742]
[1734549800313,1.6481,216.94,216.83,40.53192742]
[1734549800314,40.53192742,216.9,216.83,40.53192742]
[1734549800866,40.53192742,216.86,216.79,40.53192742]
[1734549801154,40.53192742,216.82,216.73,40.53192742]
[1734549801351,40.53192742,216.8,216.73,40.53192742]
[1734549801535,40.53192742,216.8,216.71,40.53192742]
[1734549801718,40.53192742,216.8,216.73,40.53192742]
[1734549802038,40.53192742,216.82,216.73,40.53192742]
[1734549803140,40.53192742,216.8,216.71,40.53192742]
[1734549803349,40.53192742,216.76,216.69,40.53192742]
[1734549803658,40.53192742,216.81,216.65,40.53192742]
[1734549803659,40.53192742,216.72,216.65,40.53192742]
[1734549804579,40.53192742,216.7,216.61,40.53192742]
[1734549804790,40.53192742,216.72,216.63,40.53192742]
[1734549804958,40.53192742,216.72,216.65,40.53192742]
[1734549805568,40.53192742,216.7,216.63,40.53192742]
[1734549805899,40.53192742,216.73,216.64,40.53192742]
[1734549806057,40.53192742,216.75,216.66,40.53192742]
[1734549806396,1.6104,216.79,216.6,0.69214889]
[1734549806397,40.53192742,216.71,216.6,0.69214889]
[1734549806567,40.53192742,216.68,216.61,40.53192742]
[1734549806753,40.53192742,216.67,216.59,40.53192742]
[1734549806953,40.53192742,216.64,216.56,40.53192742]
[1734549807475,40.53192742,216.67,216.59,40.53192742]
[1734549807652,40.53192742,216.69,216.61,40.53192742]
[1734549808185,40.53192742,216.67,216.59,40.53192742]
[1734549808394,40.53192742,216.65,216.57,40.53192742]
[1734549809377,40.53192742,216.67,216.59,40.53192742]
[1734549810578,40.53192742,216.69,216.61,40.53192742]
[1734549810874,1.6104,216.79,216.55,20.0]
[1734549810875,40.53192742,216.71,216.63,40.53192742]
[1734549811064,40.53192742,216.73,216.65,40.53192742]
[1734549811269,40.53192742,216.73,216.59,40.53192742]
[1734549811270,40.53192742,216.77,216.69,40.53192742]
[1734549812174,40.53192742,216.75,216.67,40.53192742]
[1734549812583,40.53192742,216.71,216.63,40.53192742]
[1734549812774,40.53192742,216.73,216.65,40.53192742]
[1734549812972,40.53192742,216.75,216.67,40.53192742]
[1734549814084,24.73142306,216.75,216.67,24.73142306]
[1734549814573,1.6104,216.79,216.62,20.0]
[1734549814574,24.73142306,216.73,216.65,24.73142306]
[1734549814772,24.73142306,216.69,216.61,24.73142306]
[1734549814981,24.73142306,216.67,216.59,24.73142306]
[1734549815570,24.73142306,216.63,216.55,24.73142306]
[1734549815777,24.73142306,216.61,216.53,24.73142306]
[1734549816472,40.23895044,216.61,216.53,40.23895044]
[1734549817472,40.23895044,216.63,216.55,40.23895044]
[1734549817684,40.23895044,216.65,216.57,40.23895044]
[1734549817984,40.23895044,216.63,216.55,40.23895044]
[1734549818383,40.23895044,216.63,216.53,40.23895044]
[1734549818695,40.23895044,216.63,216.55,40.23895044]
[1734549818860,46.81045044,216.67,216.59,40.23895044]
[1734549819059,46.81045044,216.67,216.57,40.23895044]
[1734549819060,40.23895044,216.65,216.57,40.23895044]
[1734549819985,40.23895044,216.63,216.55,40.23895044]
[1734549820287,6.5715,216.67,216.53,40.23895044]
[1734549820288,40.23895044,216.61,216.53,40.23895044]
[1734549821171,40.23895044,216.63,216.55,40.23895044]
[1734549821385,41.76955044,216.65,216.55,40.23895044]
[1734549821588,41.76955044,216.65,216.57,40.23895044]
[1734549821774,40.23895044,216.65,216.57,40.23895044]
[1734549822087,46.81045044,216.67,216.57,40.23895044]
[1734549822306,40.23895044,216.69,216.59,40.23895044]
[1734549822467,40.23895044,216.69,216.61,40.23895044]
[1734549822803,6.0513,216.73,216.65,40.23895044]
[1734549822804,40.23895044,216.73,216.65,40.23895044]
[1734549824171,40.23895044,216.77,216.69,40.23895044]
[1734549824377,47.79995044,216.79,216.71,40.23895044]
[1734549824587,40.23895044,216.81,216.73,40.23895044]
[1734549824776,6.5862,216.85,216.75,40.23895044]
[1734549824777,40.23895044,216.83,216.75,40.23895044]
[1734549824984,40.23895044,216.81,216.73,40.23895044]
[1734549825199,40.23895044,216.79,216.71,40.23895044]
[1734549825407,40.23895044,216.77,216.69,40.23895044]
[1734549825569,6.5862,216.85,216.61,7.08497354]
[1734549825570,40.23895044,216.75,216.67,40.23895044]
[1734549826370,40.23895044,216.77,216.69,40.23895044]
[1734549826792,40.23895044,216.75,216.67,40.23895044]
[1734549827097,40.23895044,216.77,216.69,40.23895044]
[1734549827286,40.23895044,216.79,216.71,40.23895044]
[1734549828803,40.23895044,216.75,216.67,40.23895044]
[1734549829802,40.23895044,216.71,216.63,40.23895044]
[1734549830023,40.23895044,216.67,216.59,40.23895044]
[1734549830335,23.776884,216.68,216.6,40.23895044]
[1734549830336,64.01583444,216.68,216.6,40.23895044]
[1734549830619,40.23895044,216.68,216.6,40.23895044]
[1734549831113,40.23895044,216.64,216.56,40.23895044]
[1734549831428,40.23895044,216.62,216.54,40.23895044]
[1734549831903,40.23895044,216.6,216.52,40.23895044]
[1734549832291,40.23895044,216.58,216.5,40.23895044]
[1734549832922,40.23895044,216.53,216.44,40.23895044]
[1734549835111,40.23895044,216.51,216.42,40.23895044]
[1734549835810,40.23895044,216.49,216.4,40.23895044]
[1734549836392,40.23895044,216.49,216.42,40.23895044]
[1734549836589,40.23895044,216.51,216.42,40.23895044]
[1734549836780,40.23895044,216.51,216.44,40.23895044]
[1734549837111,40.23895044,216.51,216.42,40.23895044]
[1734549837908,40.23895044,216.51,216.44,40.23895044]
[1734549838115,31.531984,216.57,216.44,24.78437125]
[1734549838116,24.78437125,216.52,216.44,24.78437125]
[1734549839085,24.78437125,216.52,216.39,20.0]
[1734549839086,24.78437125,216.5,216.42,24.78437125]
[1734549839413,31.531984,216.57,216.36,6.1281]
[1734549839414,24.78437125,216.48,216.4,24.78437125]
[1734549842002,24.78437125,216.42,216.33,25.19723905]
[1734549842207,24.78437125,216.39,216.33,0.4128678]
[1734549843122,6.2376,216.43,216.34,24.78437125]
[1734549843123,24.78437125,216.41,216.34,24.78437125]
[1734549843295,24.78437125,216.42,216.35,24.78437125]
[1734549843498,24.78437125,216.41,216.34,24.78437125]
[1734549844027,24.78437125,216.42,216.35,24.78437125]
[1734549844312,24.78437125,216.4,216.33,25.19723905]
[1734549844510,6.2376,216.43,216.33,0.4128678]
[1734549844511,24.78437125,216.37,216.33,0.4128678]
[1734549844888,24.78437125,216.39,216.33,0.4128678]
[1734549845433,7.8926,216.43,216.33,0.4128678]
[1734549845434,24.78437125,216.34,216.33,0.4128678]
[1734549846130,24.78437125,216.36,216.33,0.4128678]
[1734549846290,24.78437125,216.4,216.33,0.4128678]
[1734549846616,24.78437125,216.42,216.34,24.78437125]
[1734549847114,24.78437125,216.4,216.33,0.4128678]
[1734549847688,24.78437125,216.42,216.34,24.78437125]
[1734549847896,24.78437125,216.44,216.36,24.78437125]
[1734549849310,24.78437125,216.46,216.38,24.78437125]
[1734549849702,6.5555,216.49,216.33,0.4128678]
[1734549849703,24.78437125,216.48,216.4,24.78437125]
[1734549850104,24.78437125,216.44,216.36,24.78437125]
[1734549850917,24.78437125,216.42,216.34,24.78437125]
[1734549851493,24.78437125,216.46,216.38,24.78437125]
[1734549851699,24.78437125,216.48,216.4,24.78437125]
[1734549852016,24.78437125,216.42,216.34,24.78437125]
[1734549852199,24.78437125,216.4,216.33,0.4128678]
[1734549852796,24.78437125,216.42,216.34,24.78437125]
[1734549853001,23.776884,216.47,216.33,0.4128678]
[1734549853002,24.78437125,216.44,216.36,24.78437125]
[1734549853213,24.78437125,216.44,216.34,24.78437125]
[1734549853524,23.776884,216.45,216.38,24.78437125]
[1734549853825,24.78437125,216.46,216.38,24.78437125]
[1734549854024,24.78437125,216.48,216.4,24.78437125]
[1734549854400,24.78437125,216.5,216.42,24.78437125]
[1734549854627,24.78437125,216.52,216.44,24.78437125]
[1734549854836,24.78437125,216.47,216.4,24.78437125]
[1734549855035,24.78437125,216.49,216.4,24.78437125]
[1734549855251,24.78437125,216.47,216.4,24.78437125]
[1734549855543,24.78437125,216.49,216.42,24.78437125]
[1734549856021,24.78437125,216.49,216.4,24.78437125]
[1734549856205,24.78437125,216.51,216.42,24.78437125]
[1734549856409,24.78437125,216.57,216.48,24.78437125]
[1734549856617,24.78437125,216.6,216.52,24.78437125]
[1734549856805,31.43727125,216.62,216.54,24.78437125]
[1734549857006,24.78437125,216.62,216.54,24.78437125]
[1734549858400,24.78437125,216.64,216.56,24.78437125]
[1734549859027,24.78437125,216.66,216.58,24.78437125]
[1734549859405,24.78437125,216.7,216.6,24.78437125]
[1734549859620,24.78437125,216.7,216.62,24.78437125]
[1734549860130,24.78437125,216.66,216.58,24.78437125]
[1734549860443,24.78437125,216.64,216.56,24.78437125]
[1734549860630,24.78437125,216.7,216.52,24.78437125]
[1734549860631,24.78437125,216.59,216.52,24.78437125]
[1734549860803,24.78437125,216.61,216.52,24.78437125]
[1734549861206,24.78437125,216.63,216.54,24.78437125]
[1734549861613,24.78437125,216.63,216.49,7.3350491]
[1734549861614,24.78437125,216.63,216.56,24.78437125]
[1734549862037,24.78437125,216.63,216.54,24.78437125]
[1734549862204,24.78437125,216.61,216.54,24.78437125]
[1734549862409,24.78437125,216.59,216.5,24.78437125]
[1734549862610,24.78437125,216.57,216.48,24.78437125]
[1734549862809,23.776884,216.56,216.48,24.78437125]
[1734549863218,24.78437125,216.55,216.46,24.78437125]
[1734549863618,24.78437125,216.55,216.48,24.78437125]
[1734549863916,24.78437125,216.57,216.48,24.78437125]
[1734549864313,6.3628,216.68,216.51,24.78437125]
[1734549864513,24.78437125,216.63,216.54,24.78437125]
[1734549864716,24.78437125,216.61,216.54,24.78437125]
[1734549864923,24.78437125,216.59,216.52,24.78437125]
[1734549865107,24.78437125,216.59,216.46,20.0]
[1734549865108,24.78437125,216.55,216.48,24.78437125]
[1734549865519,24.78437125,216.57,216.48,24.78437125]
[1734549866005,23.776884,216.56,216.48,24.78437125]
[1734549866720,24.78437125,216.53,216.44,24.78437125]
[1734549867029,24.78437125,216.51,216.44,24.78437125]
[1734549867345,24.78437125,216.51,216.37,30.99167125]
[1734549867346,23.776884,216.5,216.42,24.78437125]
[1734549867810,24.78437125,216.45,216.38,24.78437125]
[1734549868331,24.78437125,216.47,216.38,24.78437125]
[1734549868550,24.78437125,216.45,216.38,24.78437125]
[1734549868830,23.776884,216.44,216.36,24.78437125]
[1734549869009,24.78437125,216.43,216.36,24.78437125]
[1734549869209,24.78437125,216.41,216.34,24.78437125]
[1734549870129,24.78437125,216.45,216.36,24.78437125]
[1734549870312,24.78437125,216.45,216.38,24.78437125]
[1734549871730,24.78437125,216.43,216.36,24.78437125]
[1734549872308,24.78437125,216.45,216.38,24.78437125]
[1734549872521,24.78437125,216.45,216.33,0.4128678]
[1734549872522,24.78437125,216.47,216.4,24.78437125]
[1734549872716,24.78437125,216.49,216.42,24.78437125]
[1734549872922,24.78437125,216.51,216.42,24.78437125]
[1734549873128,23.776884,216.5,216.42,24.78437125]
[1734549873332,0.8494908,216.49,216.42,24.78437125]
[1734549873717,0.8494908,216.49,216.44,24.78437125]
[1734549874031,25.63386205,216.49,216.41,44.78437125]
[1734549874225,0.8494908,216.49,216.43,24.78437125]
[1734549874739,0.8494908,216.49,216.41,20.0]
[1734549874740,25.63386205,216.49,216.41,24.78437125]
[1734549875638,24.78437125,216.47,216.39,24.78437125]
[1734549875946,24.78437125,216.45,216.35,24.78437125]
[1734549876106,24.78437125,216.43,216.35,24.78437125]
[1734549876308,0.8494908,216.42,216.35,24.78437125]
[1734549877046,0.8494908,216.42,216.33,6.9915678]
[1734549877047,0.8494908,216.42,216.37,24.78437125]
[1734549877212,0.8494908,216.42,216.39,24.78437125]
[1734549877934,0.8494908,216.42,216.37,24.78437125]
[1734549879115,0.8494908,216.42,216.4,24.78437125]
[1734549879541,0.8494908,216.42,216.38,24.78437125]
[1734549880043,24.78437125,216.47,216.38,24.78437125]
[1734549881909,24.78437125,216.49,216.42,24.78437125]
[1734549882237,24.78437125,216.43,216.34,24.78437125]
[1734549882458,24.78437125,216.48,216.33,0.4128678]
[1734549882459,24.78437125,216.4,216.33,0.4128678]
[1734549882619,24.78437125,216.38,216.33,0.4128678]
[1734549883145,23.776884,216.37,216.33,0.4128678]
[1734549883328,24.78437125,216.38,216.33,0.4128678]
[1734549883741,24.78437125,216.4,216.33,0.4128678]
[1734549884540,24.78437125,216.42,216.33,0.4128678]
[1734549884717,24.78437125,216.46,216.38,24.78437125]
[1734549885939,24.78437125,216.46,216.4,24.78437125]
[1734549886340,32.02356205,216.48,216.4,24.78437125]
[1734549887227,25.63386205,216.48,216.4,24.78437125]
[1734549887430,6.1105,216.54,216.38,24.78437125]
[1734549887431,24.78437125,216.46,216.38,24.78437125]
[1734549887635,0.8494908,216.45,216.38,24.78437125]
[1734549887954,0.8494908,216.45,216.4,24.78437125]
[1734549888245,0.8494908,216.45,216.44,24.78437125]
[1734549891730,26.36757125,216.61,216.47,20.0]
[1734549891930,25.63386205,216.61,216.54,24.78437125]
[1734549892334,24.78437125,216.55,216.47,24.78437125]
[1734549892754,24.78437125,216.53,216.47,24.78437125]
[1734549893418,24.78437125,216.55,216.47,24.78437125]
[1734549893620,24.78437125,216.57,216.49,24.78437125]
[1734549894249,24.78437125,216.55,216.47,24.78437125]
[1734549894867,24.78437125,216.57,216.49,24.78437125]
[1734549895161,25.63386205,216.61,216.53,24.78437125]
[1734549895546,0.8494908,216.61,216.55,24.78437125]
[1734549895757,0.8494908,216.61,216.57,24.78437125]
[1734549896385,24.78437125,216.63,216.55,24.78437125]
[1734549896752,24.78437125,216.65,216.57,24.78437125]
[1734549897172,23.776884,216.64,216.57,24.78437125]
[1734549897342,24.78437125,216.65,216.57,24.78437125]
[1734549897781,6.6169,216.66,216.59,24.78437125]
[1734549898067,26.38877125,216.67,216.59,24.78437125]
[1734549898290,24.78437125,216.69,216.61,24.78437125]
[1734549900171,24.78437125,216.67,216.59,24.78437125]
[1734549900386,24.78437125,216.65,216.57,24.78437125]
[1734549900872,24.78437125,216.61,216.53,24.78437125]
[1734549901168,24.78437125,216.63,216.55,24.78437125]
[1734549902552,23.776884,216.62,216.55,24.78437125]
[1734549902744,24.78437125,216.61,216.53,24.78437125]
[1734549903671,24.78437125,216.63,216.55,24.78437125]
[1734549903974,24.78437125,216.69,216.61,24.78437125]
[1734549904669,31.90913108,216.71,216.63,24.78437125]
[1734549905051,24.78437125,216.73,216.65,24.78437125]
[1734549905361,1.531,216.74,216.67,24.78437125]
[1734549905746,24.78437125,216.71,216.63,24.78437125]
[1734549906176,24.78437125,216.73,216.65,24.78437125]
[1734549906954,23.776884,216.74,216.59,20.0]
[1734549907154,7.12475983,216.79,216.7,24.78437125]
[1734549907456,24.78437125,216.77,216.7,24.78437125]
[1734549907851,24.78437125,216.77,216.68,24.78437125]
[1734549908072,24.78437125,216.75,216.68,24.78437125]
[1734549908266,24.78437125,216.75,216.62,24.78437125]
[1734549908267,24.78437125,216.71,216.62,24.78437125]
[1734549908484,24.78437125,216.69,216.62,24.78437125]
[1734549909568,24.78437125,216.69,216.6,24.78437125]
[1734549910151,24.78437125,216.71,216.64,24.78437125]
[1734549910469,24.78437125,216.75,216.66,24.78437125]
[1734549911090,24.78437125,216.77,216.68,24.78437125]
[1734549911661,0.8494908,216.75,216.7,24.78437125]
[1734549911862,0.8494908,216.75,216.74,24.78437125]
[1734549913066,17.3916126,216.87,216.74,24.78437125]
[1734549913067,17.3916126,216.87,216.77,20.0]
[1734549913287,10.26685277,216.87,216.84,24.78437125]
[1734549913699,24.78437125,216.91,216.84,24.78437125]
[1734549913984,1.0027677,216.88,216.86,24.78437125]
[1734549914184,1.0027677,216.88,216.87,24.78437125]
[1734549914960,1.0027677,216.88,216.82,24.78437125]
[1734549915299,1.0027677,216.88,216.72,7.28146559]
[1734549915300,24.78437125,216.86,216.78,24.78437125]
[1734549915505,24.78437125,216.86,216.8,24.78437125]
[1734549915682,23.776884,216.87,216.81,24.78437125]
[1734549916003,48.56125525,216.87,216.81,24.78437125]
[1734549916591,1.0027677,216.88,216.81,24.78437125]
[1734549916786,1.0027677,216.88,216.72,1.6002]
[1734549916787,1.0027677,216.88,216.83,24.78437125]
[1734549917796,0.1532769,216.88,216.85,24.78437125]
[1734549918184,0.1532769,216.88,216.87,24.78437125]
[1734549918698,0.1532769,216.88,216.86,24.78437125]
[1734549918865,0.1532769,216.88,216.84,24.78437125]
[1734549919887,0.1532769,216.88,216.82,24.78437125]
[1734549920598,23.9301609,216.88,216.82,24.78437125]
[1734549920822,0.1532769,216.88,216.87,24.78437125]
[1734549921381,0.1532769,216.88,216.85,24.78437125]
[1734549921692,0.1532769,216.88,216.75,0.81710246]
[1734549921693,0.1532769,216.88,216.87,24.78437125]
[1734549924802,0.1532769,216.88,216.87,25.47573233]
[1734549924996,24.78437125,217.03,216.87,25.47573233]
[1734549925200,6.4882,217.04,216.97,24.78437125]
[1734549926186,24.78437125,217.01,216.93,24.78437125]
[1734549926522,23.776884,217.0,216.95,24.78437125]
[1734549926694,24.78437125,217.03,216.95,24.78437125]
[1734549927225,1.5279,217.06,216.99,24.78437125]
[1734549928006,24.78437125,217.05,216.97,24.78437125]
[1734549928512,24.78437125,217.05,216.86,0.12549]
[1734549928513,24.78437125,217.01,216.81,14.29173511]
[1734549928718,23.776884,217.0,216.93,24.78437125]
[1734549929096,24.78437125,216.99,216.91,24.78437125]
[1734549929705,23.776884,216.98,216.91,24.78437125]
[1734549930593,23.776884,216.98,216.84,6.9156144]
[1734549930594,24.78437125,217.01,216.93,24.78437125]
[1734549930917,24.78437125,217.01,216.84,6.9156144]
[1734549930918,24.78437125,216.99,216.91,24.78437125]
[1734549931236,23.776884,216.98,216.91,24.78437125]
[1734549931520,24.78437125,216.97,216.89,24.78437125]
[1734549931723,24.78437125,216.93,216.85,24.78437125]
[1734549931929,23.776884,216.92,216.85,24.78437125]
[1734549932221,24.78437125,216.87,216.8,24.78437125]
[1734549932544,24.78437125,216.87,216.78,24.78437125]
[1734549932691,24.78437125,216.85,216.73,1.5747]
[1734549933027,23.776884,216.8,216.72,24.78437125]
[1734549933415,6.2965,216.84,216.67,6.5573]
[1734549933416,23.776884,216.84,216.76,24.78437125]
[1734549933722,24.78437125,216.87,216.78,24.78437125]
[1734549933913,23.776884,216.86,216.8,24.78437125]
[1734549934499,23.776884,216.86,216.76,24.78437125]
[1734549934500,23.776884,216.82,216.76,24.78437125]
[1734549934711,24.78437125,216.79,216.72,24.78437125]
[1734549934896,23.776884,216.78,216.7,24.78437125]
[1734549935107,24.78437125,216.81,216.72,24.78437125]
[1734549935290,23.776884,216.8,216.72,24.78437125]
[1734549936004,24.78437125,216.79,216.72,24.78437125]
[1734549936207,23.776884,216.78,216.72,24.78437125]
[1734549937215,23.776884,216.8,216.72,24.78437125]
[1734549937419,23.776884,216.8,216.74,24.78437125]
[1734549937633,23.776884,216.82,216.74,24.78437125]
[1734549938001,24.78437125,216.79,216.72,24.78437125]
[1734549938322,23.776884,216.8,216.74,24.78437125]
[1734549939502,24.78437125,216.83,216.76,24.78437125]
[1734549940120,23.776884,216.82,216.76,24.78437125]
[1734549940320,24.78437125,216.85,216.76,24.78437125]
[1734549941423,24.78437125,216.81,216.72,24.78437125]
[1734549941723,23.776884,216.8,216.72,24.78437125]
[1734549942398,48.56125525,216.8,216.7,24.78437125]
[1734549942602,48.56125525,216.8,216.72,24.78437125]
[1734549943180,24.78437125,216.78,216.7,24.78437125]
[1734549943458,23.776884,216.75,216.66,24.78437125]
[1734549943965,24.78437125,216.74,216.66,24.78437125]
[1734549944148,23.776884,216.73,216.64,24.78437125]
[1734549944353,23.776884,216.71,216.62,24.78437125]
[1734549944549,24.78437125,216.68,216.6,24.78437125]
[1734549944951,24.78437125,216.7,216.62,24.78437125]
[1734549945153,23.776884,216.69,216.62,24.78437125]
[1734549945369,24.78437125,216.68,216.6,24.78437125]
[1734549945552,23.776884,216.67,216.6,24.78437125]
[1734549945766,24.78437125,216.68,216.6,24.78437125]
[1734549945951,24.78437125,216.7,216.62,24.78437125]
[1734549946464,1.5997,216.8,216.66,24.78437125]
[1734549946671,24.78437125,216.77,216.68,24.78437125]
[1734549947168,24.78437125,216.75,216.68,24.78437125]
[1734549947368,24.78437125,216.75,216.66,24.78437125]
[1734549947745,24.78437125,216.71,216.62,24.78437125]
[1734549948545,23.776884,216.7,216.62,24.78437125]
[1734549948971,1.5997,216.8,216.55,7.01794632]
[1734549948972,24.78437125,216.73,216.64,24.78437125]
[1734549949145,23.776884,216.72,216.64,24.78437125]
[1734549949657,24.78437125,216.71,216.64,24.78437125]
[1734549949865,24.78437125,216.69,216.62,24.78437125]
[1734549950260,23.776884,216.7,216.62,24.78437125]
[1734549951167,24.78437125,216.69,216.6,24.78437125]
[1734549951487,24.78437125,216.65,216.58,24.78437125]
[1734549951780,24.78437125,216.63,216.54,24.78437125]
[1734549952570,23.776884,216.62,216.54,24.78437125]
[1734549953553,24.78437125,216.61,216.54,24.78437125]
[1734549955076,24.78437125,216.59,216.51,24.78437125]
[1734549955377,24.78437125,216.59,216.46,1.5454]
[1734549955378,24.78437125,216.53,216.45,24.78437125]
[1734549955588,24.78437125,216.59,216.39,1.6428]
[1734549955589,24.78437125,216.51,216.43,24.78437125]
[1734549955757,24.78437125,216.51,216.41,24.78437125]
[1734549955958,24.78437125,216.49,216.41,24.78437125]
[1734549956160,24.78437125,216.47,216.39,24.78437125]
[1734549956490,24.78437125,216.43,216.35,24.78437125]
[1734549956870,23.776884,216.42,216.33,25.35051595]
[1734549957063,23.776884,216.4,216.33,25.35051595]
[1734549957757,24.78437125,216.41,216.33,25.35051595]
[1734549958971,24.78437125,216.43,216.33,25.35051595]
[1734549959176,23.776884,216.42,216.33,25.35051595]
[1734549959683,23.776884,216.4,216.33,25.35051595]
[1734549960178,23.776884,216.4,216.33,0.5661447]
[1734549960486,31.662284,216.34,216.22,24.78437125]
[1734549960661,24.78437125,216.23,216.16,0.69354905]
[1734549960856,24.78437125,216.23,216.21,2.0034]
[1734549961068,23.776884,216.22,216.21,2.0034]
[1734549961271,23.776884,216.22,216.11,0.5661447]
[1734549961471,24.78437125,216.12,216.11,0.5661447]
[1734549961755,48.56125525,216.12,216.11,0.5661447]
[1734549961973,64.23367871,216.12,215.95,40.45679471]
[1734549962185,40.45679471,216.05,215.97,40.45679471]
[1734549962358,23.776884,216.06,215.99,40.45679471]
[1734549962551,23.776884,216.06,215.97,40.45679471]
[1734549962904,40.45679471,216.09,216.01,40.45679471]
[1734549963063,40.45679471,216.13,216.05,40.45679471]
[1734549963261,23.776884,216.12,216.05,40.45679471]
[1734549963485,64.23367871,216.15,216.05,40.45679471]
[1734549963666,40.45679471,216.15,216.07,40.45679471]
[1734549964512,40.45679471,216.21,216.13,40.45679471]
[1734549965470,6.5398,216.26,216.13,40.45679471]
[1734549965471,40.45679471,216.23,216.13,40.45679471]
[1734549965786,40.45679471,216.19,216.11,40.45679471]
[1734549966082,40.45679471,216.19,216.1,40.45679471]
[1734549966253,40.45679471,216.23,216.14,40.45679471]
[1734549966458,40.45679471,216.25,216.18,40.45679471]
[1734549966680,6.5267,216.34,216.12,40.45679471]
[1734549966885,40.45679471,216.18,216.07,20.0]
[1734549967181,40.45679471,216.2,216.12,40.45679471]
[1734549967403,40.45679471,216.22,216.14,40.45679471]
[1734549967562,23.776884,216.23,216.16,40.45679471]
[1734549967760,23.776884,216.21,216.14,40.45679471]
[1734549967989,23.776884,216.21,216.16,40.45679471]
[1734549968661,40.45679471,216.24,216.14,40.45679471]
[1734549968861,40.45679471,216.2,216.12,40.45679471]
[1734549969426,40.45679471,216.22,216.14,40.45679471]
[1734549969881,40.45679471,216.24,216.16,40.45679471]
[1734549970198,40.45679471,216.22,216.14,40.45679471]
[1734549970402,40.45679471,216.2,216.12,40.45679471]
[1734549970610,40.45679471,216.18,216.09,40.45679471]
[1734549970771,40.45679471,216.2,216.11,40.45679471]
[1734549971402,23.776884,216.23,216.15,40.45679471]
[1734549971692,40.45679471,216.3,216.21,40.45679471]
[1734549971902,40.45679471,216.3,216.23,40.45679471]
[1734549972269,40.45679471,216.28,216.19,40.45679471]
[1734549972467,40.45679471,216.3,216.23,40.45679471]
[1734549972687,40.45679471,216.32,216.23,40.45679471]
[1734549973005,40.45679471,216.28,216.21,40.45679471]
[1734549973221,40.45679471,216.28,216.17,40.45679471]
[1734549973425,40.45679471,216.26,216.19,40.45679471]
[1734549973608,40.45679471,216.28,216.19,40.45679471]
[1734549974325,40.45679471,216.28,216.21,40.45679471]
[1734549974712,40.45679471,216.26,216.19,40.45679471]
[1734549975028,23.776884,216.29,216.21,40.45679471]
[1734549975399,40.45679471,216.28,216.21,40.45679471]
[1734549975599,64.23367871,216.32,216.23,40.45679471]